bitfinex/quotes_ETHUSD_20240717
["timestamp","ask_amount","ask_price","bid_price","bid_amount"]
[1721231409531,10.32,3449.3,3447.2,5.19155]
[1721231409532,2.89988,3448.5,3447.2,5.19155]
[1721231409733,10.32,3449.3,3447.2,5.19153]
[1721231409734,2.89989,3448.4,3447.2,5.19153]
[1721231409941,2.89962,3448.8,3447.2,5.19153]
[1721231410142,2.8999,3448.4,3447.2,2.2907]
[1721231410373,2.89981,3448.5,3446.8,0.0771733]
[1721231410374,2.90034,3447.9,3446.8,0.0771733]
[1721231410638,2.90017,3448.1,3446.8,2.9784033]
[1721231410767,3.0,3448.3,3447.1,2.90098]
[1721231410972,3.0,3448.4,3446.8,0.0771733]
[1721231411206,7.32,3448.7,3447.4,2.9007]
[1721231411207,10.21967,3448.7,3447.4,2.9007]
[1721231411483,2.89974,3448.6,3447.5,0.6381614]
[1721231411692,2.89974,3448.6,3447.5,3.5388014]
[1721231411910,2.89955,3448.9,3447.5,3.5388014]
[1721231411911,3.291,3449.3,3447.7,2.2715]
[1721231412051,5.21703,3449.4,3448.0,2.90022]
[1721231412249,15.521,3449.8,3448.0,2.90016]
[1721231412250,2.89897,3449.5,3448.0,2.90016]
[1721231412480,7.32,3450.2,3448.6,2.89967]
[1721231412481,2.89854,3450.1,3448.6,2.89967]
[1721231412659,6.1893,3450.3,3448.9,2.89946]
[1721231412873,2.8983,3450.3,3448.9,2.89946]
[1721231413087,3.291,3450.8,3449.2,2.8992]
[1721231413088,2.89803,3450.7,3449.2,2.8992]
[1721231413388,3.291,3450.8,3449.5,2.89896]
[1721231413685,3.291,3450.8,3449.0,2.89936]
[1721231413864,2.89862,3450.0,3448.8,2.89955]
[1721231414065,2.89862,3450.0,3448.9,2.89947]
[1721231414274,3.291,3450.3,3448.7,2.2715]
[1721231414275,2.89864,3449.9,3448.7,2.2715]
[1721231414500,2.89871,3449.8,3448.7,5.17113]
[1721231414664,2.89847,3450.1,3448.9,2.89946]
[1721231414870,2.89858,3450.0,3448.9,3.706521]
[1721231415113,2.89866,3449.9,3448.9,3.706521]
[1721231415314,2.8988,3449.7,3448.7,2.2715]
[1721231415472,2.89882,3449.7,3448.5,2.8998]
[1721231415807,2.89891,3449.6,3448.5,2.8998]
[1721231416822,3.291,3449.8,3448.5,2.8998]
[1721231416997,2.89888,3449.6,3448.5,2.8998]
[1721231417169,2.89888,3449.6,3448.2,2.90001]
[1721231417170,2.8988,3449.7,3448.6,3.1897]
[1721231417483,3.0,3450.2,3449.1,2.89929]
[1721231417484,5.89839,3450.2,3449.1,2.89929]
[1721231417683,8.59418,3450.4,3448.9,2.89941]
[1721231417902,3.0,3450.3,3449.0,2.89933]
[1721231418273,2.89838,3450.2,3449.0,2.89933]
[1721231418474,5.89848,3450.1,3448.6,3.18963]
[1721231418794,2.89872,3449.8,3448.7,2.89963]
[1721231419181,2.89872,3449.8,3448.3,2.89992]
[1721231419402,2.89937,3449.1,3447.8,5.38423]
[1721231419614,2.89922,3449.2,3448.1,2.90013]
[1721231420001,2.89872,3449.8,3448.6,2.89972]
[1721231420179,2.89882,3449.7,3448.7,2.89963]
[1721231420517,3.291,3449.9,3448.4,2.89989]
[1721231420518,2.89891,3449.6,3448.6,2.89972]
[1721231420682,2.4072,3449.7,3448.4,2.89989]
[1721231420891,5.30602,3449.7,3448.5,2.89979]
[1721231421219,2.89904,3449.5,3448.4,2.89989]
[1721231421402,2.89916,3449.3,3448.4,2.89989]
[1721231421923,2.89916,3449.3,3447.9,3.738723]
[1721231422220,2.89939,3449.0,3448.0,2.90022]
[1721231422423,2.89973,3448.6,3447.2,2.3131]
[1721231422635,2.89982,3448.5,3447.2,2.3131]
[1721231422798,2.89982,3448.5,3447.5,2.90062]
[1721231422986,2.89932,3449.1,3447.3,3.054]
[1721231423185,2.89932,3449.1,3447.2,4.0131]
[1721231423186,3.0,3449.0,3447.4,0.70671]
[1721231423387,3.0,3449.0,3447.8,2.90034]
[1721231423388,5.89941,3449.0,3447.8,2.90034]
[1721231423614,2.89957,3448.8,3447.6,2.90054]
[1721231423924,3.0,3449.0,3447.4,3.76071]
[1721231424227,3.0,3449.0,3448.0,2.90017]
[1721231424784,12.60939,3449.5,3448.0,0.580047]
[1721231424996,2.89907,3449.4,3448.4,2.89989]
[1721231425331,5.28939,3449.5,3447.4,0.70671]
[1721231425332,2.89943,3449.0,3447.4,0.70671]
[1721231425484,2.89943,3449.0,3448.0,2.90023]
[1721231426514,2.89922,3449.2,3448.1,2.90013]
[1721231426715,2.89931,3449.1,3448.1,2.90013]
[1721231427288,2.89931,3449.1,3447.5,0.55]
[1721231427623,3.291,3449.4,3447.7,2.90044]
[1721231427624,2.89961,3448.8,3447.7,2.90044]
[1721231427824,2.89973,3448.6,3447.5,3.427571]
[1721231428002,2.89997,3448.4,3447.3,2.90079]
[1721231428199,2.90015,3448.1,3447.1,2.90096]
[1721231428407,2.90023,3448.0,3447.1,2.90096]
[1721231428600,2.90023,3448.0,3446.8,2.9783533]
[1721231428601,2.90032,3447.9,3446.8,2.9783533]
[1721231428789,2.90023,3448.0,3446.8,2.9783533]
[1721231428790,2.90042,3447.8,3446.8,2.9783533]
[1721231429012,2.90042,3447.8,3446.9,2.90113]
[1721231429198,2.90042,3447.8,3446.8,0.0771733]
[1721231429412,2.90042,3447.8,3446.8,2.9783633]
[1721231429616,2.90042,3447.8,3446.9,2.90114]
[1721231430016,2.90042,3447.8,3446.8,0.0771733]
[1721231430017,2.90057,3447.6,3446.8,0.0771733]
[1721231430313,2.90067,3447.5,3446.8,0.0771733]
[1721231430716,2.90053,3447.7,3446.8,0.0771733]
[1721231430917,2.90062,3447.6,3446.8,0.0771733]
[1721231431121,2.90066,3447.5,3446.8,0.0771733]
[1721231431702,0.05599889,3447.4,3446.8,0.0771733]
[1721231431906,2.9015,3446.5,3445.9,0.1490527]
[1721231432102,2.90124,3446.8,3445.9,0.1490527]
[1721231432308,3.291,3446.9,3445.9,0.1490527]
[1721231432309,2.90174,3446.2,3445.9,0.1490527]
[1721231432552,2.90183,3446.1,3445.9,0.1490527]
[1721231432907,8.14762,3446.0,3445.9,0.1490527]
[1721231433177,2.90191,3446.0,3445.9,0.1490527]
[1721231434210,5.80382,3446.0,3445.9,0.1490527]
[1721231434807,2.90219,3445.7,3445.0,5.003796]
[1721231435064,2.461,3445.9,3445.0,5.003796]
[1721231435065,2.90209,3445.8,3445.0,5.003796]
[1721231435209,2.90216,3445.7,3445.0,5.003796]
[1721231435950,5.8044,3445.7,3445.0,5.003796]
[1721231436135,2.90216,3445.7,3445.0,5.003796]
[1721231436340,3.0,3445.6,3445.0,5.003796]
[1721231436542,3.0,3445.7,3445.0,5.003796]
[1721231436847,3.0,3445.8,3445.0,5.003796]
[1721231437256,2.90217,3445.7,3445.0,5.003796]
[1721231437411,3.0,3445.8,3445.0,5.7944766]
[1721231437731,10.22137,3446.7,3445.0,8.6972166]
[1721231437732,2.90193,3446.0,3445.0,8.6972166]
[1721231438254,2.90193,3446.0,3445.0,5.7944766]
[1721231438413,6.1928,3446.2,3445.0,8.6972066]
[1721231438613,5.90184,3446.1,3445.1,1.16000566]
[1721231439116,3.0,3446.1,3445.1,4.06264566]
[1721231439459,3.0,3446.1,3445.2,2.90252]
[1721231439628,6.19318,3445.7,3445.0,5.003796]
[1721231440560,6.19317,3445.7,3445.0,5.003796]
[1721231441029,3.291,3445.7,3445.0,5.003796]
[1721231441226,3.291,3446.2,3445.2,2.90258]
[1721231441465,0.05599889,3447.4,3445.0,5.7944666]
[1721231441466,3.291,3446.7,3445.0,5.7944666]
[1721231441616,2.90141,3446.6,3445.6,2.90223]
[1721231441820,6.19235,3446.7,3445.6,2.90223]
[1721231442132,2.90146,3446.6,3445.6,2.90223]
[1721231442316,6.19233,3446.7,3445.6,3.482686]
[1721231442515,6.19233,3446.7,3445.6,0.580456]
[1721231442516,2.90141,3446.6,3445.6,0.580456]
[1721231442716,2.90172,3446.3,3445.1,2.9026]
[1721231442957,2.90184,3446.1,3445.0,5.7944666]
[1721231443155,2.9021,3445.8,3445.0,5.003796]
[1721231443717,3.291,3445.7,3445.0,5.003796]
[1721231443916,2.90234,3445.5,3445.0,5.003796]
[1721231444156,2.4055,3446.2,3445.0,5.003796]
[1721231444157,2.90267,3445.1,3445.0,5.003796]
[1721231444516,5.80534,3445.1,3445.0,5.003796]
[1721231444664,5.80534,3445.1,3443.7,2.9038]
[1721231444665,2.90376,3443.9,3442.4,2.50917284]
[1721231444866,6.19449,3444.2,3442.9,2.90451]
[1721231445020,3.291,3444.2,3443.0,2.90443]
[1721231445347,3.291,3444.2,3442.8,2.90459]
[1721231445348,2.90367,3444.0,3442.8,2.90459]
[1721231445557,2.3649,3444.0,3442.6,0.26582255]
[1721231445750,3.291,3443.7,3442.6,0.26582255]
[1721231445922,2.90384,3443.8,3442.7,0.58288881]
[1721231446156,2.90385,3443.7,3442.8,2.9046]
[1721231446369,2.90385,3443.7,3442.7,3.48752881]
[1721231446585,2.90431,3443.2,3442.6,0.26582255]
[1721231446884,2.9037,3443.9,3442.6,0.26582255]
[1721231446885,2.90396,3443.6,3442.6,0.26582255]
[1721231447176,2.9042,3443.3,3442.6,0.26582255]
[1721231447465,2.9042,3443.3,3442.5,0.1490527]
[1721231447466,2.90444,3443.0,3442.5,0.1490527]
[1721231447821,2.90478,3442.6,3442.5,0.1490527]
[1721231448022,9.37953,3442.9,3442.5,0.1490527]
[1721231448323,6.365,3443.6,3442.5,3.0538427]
[1721231448548,2.90385,3443.7,3442.6,0.55630155]
[1721231448750,3.0,3443.6,3442.5,3.0538927]
[1721231448935,2.90409,3443.5,3442.5,3.0538927]
[1721231449143,3.0,3443.6,3442.5,0.1490527]
[1721231449361,2.3649,3444.1,3442.5,0.1490527]
[1721231449362,3.475,3443.8,3442.5,0.1490527]
[1721231449539,2.90459,3442.9,3442.5,0.1490527]
[1721231449857,3.475,3443.2,3442.5,0.1490527]
[1721231450220,2.90466,3442.8,3442.5,0.41487525]
[1721231450419,2.90466,3442.8,3442.5,0.1490527]
[1721231450625,2.90478,3442.6,3442.5,0.1490527]
[1721231450825,9.28456,3442.6,3442.5,0.1490527]
[1721231451221,3.475,3442.6,3442.5,0.1490527]
[1721231451428,2.90436,3443.1,3442.5,0.1490527]
[1721231451659,3.0,3443.0,3442.5,0.1490527]
[1721231452247,5.90445,3443.0,3442.5,0.1490527]
[1721231453152,3.0,3443.0,3442.5,0.1490527]
[1721231453357,3.0,3443.1,3442.5,0.1490527]
[1721231453534,2.9045,3443.0,3442.5,0.1490527]
[1721231453734,2.90478,3442.6,3442.5,0.1490527]
[1721231453961,5.80956,3442.6,3442.5,0.1490527]
[1721231454540,5.80956,3442.6,3442.4,2.50917284]
[1721231454541,5.80972,3442.5,3442.4,2.50917284]
[1721231454747,5.80972,3442.5,3439.8,3.41891526]
[1721231454748,2.90628,3440.9,3439.8,3.41891526]
[1721231454968,3.475,3441.2,3440.1,2.91487]
[1721231455168,4.00420418,3442.4,3440.1,2.91487]
[1721231455169,2.90544,3441.9,3440.6,2.90644]
[1721231455538,3.0,3442.4,3440.3,2.90671]
[1721231455870,3.0,3442.4,3440.2,3.218247]
[1721231456039,2.90464,3442.8,3440.9,4.754]
[1721231456242,2.90464,3442.8,3440.2,0.311487]
[1721231456243,2.90507,3442.3,3440.3,2.00107727]
[1721231456465,2.9046,3442.9,3441.4,2.90578]
[1721231456773,2.3449,3443.0,3441.6,2.9056]
[1721231456981,2.90427,3443.2,3442.0,2.90528]
[1721231457269,2.89,3443.4,3442.0,2.90528]
[1721231457270,2.90419,3443.3,3442.0,2.90528]
[1721231457767,2.90442,3443.1,3442.0,2.3356]
[1721231457979,2.90434,3443.2,3442.0,2.3356]
[1721231457980,2.90447,3443.0,3442.0,2.3356]
[1721231458130,2.90432,3443.2,3441.4,2.3356]
[1721231458331,2.89,3443.4,3441.6,2.90555]
[1721231458332,2.9047,3442.7,3441.6,2.90555]
[1721231458530,2.9047,3442.7,3441.5,0.524154]
[1721231458531,3.0,3443.3,3441.5,0.524154]
[1721231458755,3.0,3443.3,3441.4,2.3356]
[1721231458756,2.90476,3442.7,3441.4,2.3356]
[1721231459234,3.0,3443.3,3441.5,2.90564]
[1721231459235,2.90453,3442.9,3441.5,2.90564]
[1721231459430,2.89,3443.4,3441.5,3.054]
[1721231459659,2.89,3443.4,3441.4,5.24137]
[1721231459660,2.90419,3443.3,3442.3,2.90503]
[1721231460133,2.90419,3443.3,3442.1,2.90518]
[1721231460443,2.89,3443.4,3442.3,2.90497]
[1721231460628,2.90378,3443.8,3442.5,5.26678]
[1721231460826,2.90402,3443.5,3442.5,2.362]
[1721231461043,2.90402,3443.5,3441.6,0.55]
[1721231461044,3.475,3443.8,3441.7,2.4773]
[1721231461266,2.90412,3443.4,3441.7,2.4773]
[1721231461473,2.90412,3443.4,3441.8,0.24773]
[1721231461771,3.475,3443.8,3441.8,0.24773]
[1721231461970,2.9047,3442.7,3441.8,0.24773]
[1721231462280,2.9047,3442.7,3441.7,2.4773]
[1721231462428,3.0,3443.1,3441.7,2.4773]
[1721231462781,2.90481,3442.6,3441.7,2.4773]
[1721231463083,3.0,3443.1,3441.7,2.4773]
[1721231463084,2.90459,3442.9,3441.8,2.90545]
[1721231463236,5.90439,3443.1,3441.8,2.90545]
[1721231463237,2.90461,3442.8,3441.8,0.828837]
[1721231463886,2.90461,3442.8,3441.8,3.734287]
[1721231464170,2.90461,3442.8,3441.7,5.38281]
[1721231464587,2.90488,3442.5,3441.7,2.4773]
[1721231464875,2.90565,3441.6,3440.6,5.38466]
[1721231465237,2.90577,3441.5,3440.6,3.016666]
[1721231465433,2.90546,3441.8,3440.6,3.016666]
[1721231465677,2.90572,3441.5,3440.6,3.016666]
[1721231465927,3.0,3442.4,3440.6,2.4782]
[1721231465928,2.90579,3441.4,3440.6,2.4782]
[1721231466043,2.4792,3441.5,3440.2,2.90678]
[1721231466382,2.90612,3441.1,3439.8,0.056678]
[1721231466586,2.90664,3440.4,3439.8,0.056678]
[1721231466800,3.0,3441.0,3439.8,0.056678]
[1721231466942,5.90614,3441.0,3439.8,0.056678]
[1721231467139,2.90621,3440.9,3439.8,0.056678]
[1721231467343,2.90642,3440.7,3439.8,0.056678]
[1721231467788,2.90625,3440.9,3439.8,0.056678]
[1721231467971,3.0,3440.8,3439.8,2.963798]
[1721231468174,3.0,3441.0,3439.8,0.056678]
[1721231468356,3.475,3441.4,3439.8,0.056678]
[1721231468357,3.0,3441.3,3439.8,0.056678]
[1721231468541,2.90664,3440.4,3439.8,0.056678]
[1721231469091,2.3788,3440.2,3439.8,0.056678]
[1721231469242,2.3788,3440.2,3439.0,0.1490527]
[1721231469243,5.8538,3440.2,3439.0,0.1490527]
[1721231469439,2.90773,3439.1,3439.0,0.1490527]
[1721231469702,0.55,3440.1,3439.0,0.1490527]
[1721231469703,2.90709,3439.9,3439.0,0.1490527]
[1721231469976,2.90613,3441.0,3439.5,2.90737]
[1721231470297,2.90592,3441.3,3439.6,0.290737]
[1721231470439,3.475,3441.4,3439.5,2.90733]
[1721231470440,2.90635,3440.8,3439.5,2.90733]
[1721231470639,2.90621,3440.9,3439.1,2.90771]
[1721231470975,2.3788,3441.5,3440.1,2.90687]
[1721231470976,2.90571,3441.5,3440.1,2.90687]
[1721231471164,3.475,3442.0,3440.5,2.90648]
[1721231471165,2.90538,3441.9,3440.5,2.90648]
[1721231471380,3.475,3442.0,3440.5,2.90648]
[1721231471381,5.79551,3441.8,3440.5,2.90648]
[1721231471576,5.79551,3441.8,3439.9,2.4732]
[1721231471577,2.89,3441.8,3440.4,2.90662]
[1721231471781,5.79552,3441.8,3440.5,2.90654]
[1721231471992,2.90563,3441.6,3440.4,2.90657]
[1721231472782,5.8125,3440.9,3439.6,2.90727]
[1721231472980,2.90604,3441.1,3439.7,3.197937]
[1721231473151,2.90632,3440.8,3439.3,5.21905]
[1721231473676,2.90655,3440.5,3439.3,2.3115]
[1721231473840,2.9067,3440.4,3439.3,5.219]
[1721231474366,2.9067,3440.4,3439.4,2.90748]
[1721231474367,2.90667,3440.4,3439.4,2.90748]
[1721231474568,2.90636,3440.8,3439.4,2.90748]
[1721231474776,3.0,3441.0,3439.3,5.21906]
[1721231474777,2.9067,3440.4,3439.3,5.21906]
[1721231474945,2.9067,3440.4,3439.9,0.005]
[1721231475144,2.90649,3440.6,3439.9,0.005]
[1721231475701,3.0,3441.0,3439.9,0.005]
[1721231476029,2.90564,3441.6,3440.4,2.90656]
[1721231476295,3.475,3442.0,3440.2,2.90679]
[1721231476450,2.90579,3441.4,3440.3,2.90671]
[1721231476651,2.90579,3441.4,3440.4,2.90662]
[1721231476889,2.90579,3441.4,3439.9,0.005]
[1721231476890,3.475,3442.0,3439.9,2.91198]
[1721231477084,0.30304506,3442.3,3439.9,2.91198]
[1721231477085,2.9062,3441.0,3439.9,0.005]
[1721231477385,2.90639,3440.7,3439.9,0.005]
[1721231477991,2.90626,3440.9,3439.9,0.005]
[1721231478152,3.0,3441.2,3440.2,2.9068]
[1721231478354,3.0,3441.3,3440.1,2.90688]
[1721231478582,2.90599,3441.2,3439.9,0.296214]
[1721231478777,3.0,3441.6,3439.9,0.296214]
[1721231478778,2.90623,3440.9,3439.9,0.005]
[1721231479170,2.90633,3440.8,3439.9,0.005]
[1721231479369,3.0,3441.1,3439.9,2.91205]
[1721231479707,3.0,3441.1,3440.1,2.90687]
[1721231479910,2.90642,3440.7,3439.9,0.005]
[1721231480205,2.90627,3440.9,3439.9,2.91198]
[1721231480366,2.90627,3440.9,3440.0,2.90696]
[1721231480893,3.0,3441.3,3439.9,0.005]
[1721231481056,2.90642,3440.7,3439.9,0.005]
[1721231481257,2.90647,3440.6,3439.9,0.005]
[1721231481451,6.38081,3441.4,3439.9,0.005]
[1721231481452,2.90697,3440.0,3439.9,0.005]
[1721231481685,3.0,3440.5,3438.7,0.011]
[1721231481686,2.90729,3439.7,3438.7,0.011]
[1721231481871,3.475,3440.2,3438.7,0.011]
[1721231481872,2.90732,3439.6,3438.7,0.011]
[1721231482312,2.90724,3439.7,3438.7,0.011]
[1721231482615,2.90723,3439.7,3438.7,0.011]
[1721231482918,2.90748,3439.4,3438.7,0.011]
[1721231483071,6.475,3440.2,3438.7,2.91905]
[1721231483072,2.90707,3439.9,3438.7,2.91905]
[1721231483274,0.44146525,3440.3,3438.7,0.011]
[1721231483475,3.475,3440.8,3438.7,0.011]
[1721231483730,2.90621,3440.9,3439.6,2.90729]
[1721231483932,6.38075,3441.5,3439.6,2.90729]
[1721231483933,2.90613,3441.0,3440.0,2.90696]
[1721231484081,3.475,3441.5,3439.6,0.290729]
[1721231484082,3.475,3441.5,3439.8,2.90708]
[1721231484409,2.90618,3441.0,3439.9,2.90705]
[1721231484614,2.90613,3441.0,3439.9,2.90705]
[1721231484815,2.9063,3440.8,3439.9,2.90705]
[1721231485021,2.9063,3440.8,3439.2,5.16761]
[1721231485022,2.9063,3440.8,3439.5,2.90734]
[1721231485176,2.90656,3440.5,3439.0,0.1490527]
[1721231485374,2.90698,3440.0,3439.0,3.0568627]
[1721231485610,2.90698,3440.0,3439.1,2.90772]
[1721231485827,6.38175,3440.3,3439.2,2.90763]
[1721231485981,6.38175,3440.3,3439.3,2.90756]
[1721231486176,2.90703,3440.0,3439.0,0.1490527]
[1721231486384,2.90686,3440.2,3439.0,3.0568527]
[1721231486587,3.0,3440.6,3439.4,2.90747]
[1721231486588,5.90654,3440.6,3439.4,2.90747]
[1721231486815,2.90654,3440.6,3439.4,2.90741]
[1721231487006,2.90654,3440.6,3439.5,2.90732]
[1721231487186,6.38123,3440.9,3438.7,3.065]
[1721231487187,2.90632,3440.8,3439.1,2.90769]
[1721231487392,2.90632,3440.8,3438.7,5.973]
[1721231487393,2.90632,3440.8,3439.9,2.907]
[1721231487832,1.742,3441.4,3439.3,2.90756]
[1721231488036,2.90661,3440.5,3438.7,2.91904]
[1721231488314,2.90661,3440.5,3438.9,2.90785]
[1721231488315,2.90716,3439.8,3438.9,2.90785]
[1721231488528,2.90716,3439.8,3438.7,0.011]
[1721231488820,2.90716,3439.8,3438.7,2.91906]
[1721231489126,3.0,3440.4,3439.3,2.9075]
[1721231489127,5.90671,3440.4,3439.3,2.9075]
[1721231489330,2.90649,3440.6,3439.3,2.9075]
[1721231489492,2.90649,3440.6,3439.6,2.90728]
[1721231489493,2.90647,3440.6,3439.6,2.90728]
[1721231489681,2.90639,3440.7,3439.6,2.90728]
[1721231489898,2.90621,3440.9,3439.9,2.907]
[1721231490094,10.50197,3441.5,3439.6,2.90729]
[1721231490320,2.90655,3440.5,3439.6,2.90729]
[1721231490523,2.90672,3440.3,3439.2,2.90763]
[1721231490724,2.90672,3440.3,3439.4,2.90747]
[1721231490933,2.90661,3440.5,3439.5,2.90739]
[1721231491092,2.90661,3440.5,3439.2,2.90759]
[1721231491431,2.90697,3440.1,3439.1,2.90773]
[1721231491739,2.90657,3440.5,3439.2,2.90764]
[1721231491895,2.90694,3440.1,3439.2,2.90764]
[1721231492089,2.90698,3440.0,3439.2,2.90764]
[1721231492329,2.90698,3440.0,3438.9,2.90788]
[1721231492546,2.90698,3440.0,3438.7,0.302906]
[1721231492547,2.90726,3439.7,3438.7,2.91905]
[1721231492828,5.36117,3440.3,3438.7,3.446585]
[1721231493045,5.36118,3440.3,3439.2,2.90757]
[1721231493195,2.90647,3440.6,3439.3,2.90756]
[1721231493572,0.60320135,3441.4,3439.9,2.907]
[1721231493573,2.90598,3441.2,3439.9,2.907]
[1721231493699,3.475,3441.5,3439.9,2.907]
[1721231493700,2.90604,3441.1,3439.9,2.907]
[1721231494060,3.475,3441.5,3438.9,5.96184]
[1721231494061,2.90597,3441.2,3440.1,2.90687]
[1721231494207,7.53746,3441.8,3440.8,2.90623]
[1721231494208,2.90546,3441.8,3440.8,2.90623]
[1721231494751,2.90546,3441.8,3440.9,2.90621]
[1721231495054,2.90546,3441.8,3440.2,3.488143]
[1721231495055,2.90568,3441.6,3440.5,2.90653]
[1721231495337,2.90564,3441.6,3440.5,2.9065]
[1721231495539,3.475,3442.1,3439.9,0.00914963]
[1721231495540,6.38025,3442.1,3439.9,0.00914963]
[1721231495745,2.90596,3441.2,3440.1,2.90681]
[1721231496094,2.90632,3440.8,3439.9,0.00914963]
[1721231496390,2.4354,3441.4,3440.0,2.90693]
[1721231496626,2.90622,3440.9,3440.0,2.90693]
[1721231497138,2.90613,3441.0,3440.0,2.90693]
[1721231497341,2.90697,3440.0,3439.9,0.00914963]
[1721231497732,5.81394,3440.0,3439.9,0.00914963]
[1721231497914,2.90697,3440.0,3439.9,0.00914963]
[1721231498118,5.34209,3440.4,3439.9,0.00914963]
[1721231498119,2.4354,3440.4,3439.9,0.00914963]
[1721231498428,5.81394,3440.0,3439.9,0.00914963]
[1721231499438,2.90755,3439.4,3438.7,0.011]
[1721231499736,3.0,3440.0,3438.7,0.011]
[1721231499737,2.90775,3439.1,3438.7,0.011]
[1721231500039,2.90782,3439.0,3438.7,0.011]
[1721231500396,2.90737,3439.6,3438.7,0.011]
[1721231500625,2.90748,3439.4,3438.7,0.011]
[1721231500835,2.90762,3439.3,3438.7,0.011]
[1721231501048,2.90757,3439.3,3438.7,0.011]
[1721231501281,2.90742,3439.5,3438.7,0.011]
[1721231501501,2.90749,3439.4,3438.7,0.011]
[1721231501778,2.90774,3439.1,3438.7,0.011]
[1721231502151,3.0,3440.0,3438.7,0.011]
[1721231502353,2.90719,3439.8,3438.7,0.011]
[1721231502553,5.34204,3440.4,3438.7,0.011]
[1721231502554,0.60320135,3440.4,3438.9,2.4048]
[1721231502785,4.2311998,3441.2,3438.9,2.4048]
[1721231502786,0.60320135,3441.0,3439.9,2.90699]
[1721231502969,4.0964027,3441.4,3439.9,2.90699]
[1721231502970,2.89,3441.4,3440.2,2.3796]
[1721231503187,3.50856135,3442.0,3440.4,2.90661]
[1721231503480,6.86335317,3442.5,3440.4,2.90661]
[1721231503481,2.90573,3441.5,3440.4,2.90661]
[1721231503652,0.60320135,3442.1,3440.4,2.90663]
[1721231503838,2.90585,3441.4,3440.4,2.90663]
[1721231504043,2.90588,3441.3,3440.4,3.57461486]
[1721231504243,2.90571,3441.5,3440.4,3.57461486]
[1721231504474,2.90563,3441.6,3440.6,2.90646]
[1721231504677,2.90572,3441.5,3440.6,2.90646]
[1721231504884,2.90588,3441.3,3440.4,3.57461486]
[1721231505289,3.50853135,3442.0,3439.5,2.3732]
[1721231505290,2.90621,3441.0,3439.5,2.3732]
[1721231505510,2.90604,3441.1,3439.9,2.90705]
[1721231505653,2.90644,3440.7,3439.7,2.90716]
[1721231505981,2.90637,3440.8,3439.8,2.90714]
[1721231506185,2.90641,3440.7,3439.8,2.90714]
[1721231506402,2.90584,3441.4,3439.4,2.90745]
[1721231506403,2.90662,3440.5,3439.4,2.90745]
[1721231506603,2.90662,3440.5,3438.7,2.002923]
[1721231506604,2.90637,3440.8,3438.7,0.302923]
[1721231506905,2.97790135,3441.0,3438.7,0.302923]
[1721231506906,3.50942135,3440.9,3438.7,0.302923]
[1721231507075,2.3747,3441.0,3439.4,2.90747]
[1721231507076,3.0,3440.7,3439.4,2.90747]
[1721231507401,2.90647,3440.6,3439.3,2.90754]
[1721231507549,3.60320135,3440.7,3439.5,2.90739]
[1721231507754,3.0,3440.7,3439.5,2.90739]
[1721231507956,0.60320135,3440.7,3439.5,2.90739]
[1721231508194,0.60320135,3440.7,3439.6,0.581493]
[1721231508468,0.60320135,3440.7,3439.3,2.90754]
[1721231508469,2.90669,3440.4,3439.3,2.90754]
[1721231508861,2.90649,3440.6,3439.3,2.90754]
[1721231508862,3.50969135,3440.6,3439.3,2.90754]
[1721231509066,3.0,3440.5,3439.7,2.90717]
[1721231509265,2.90652,3440.6,3439.7,2.90717]
[1721231509573,3.0,3440.5,3439.7,2.90717]
[1721231509775,6.50967135,3440.6,3439.7,2.90717]
[1721231509975,0.60320135,3440.7,3439.7,2.90717]
[1721231510150,0.60320135,3440.7,3439.8,2.90713]
[1721231510907,0.60320135,3440.7,3439.7,3.488624]
[1721231510908,0.60320135,3441.1,3440.3,2.90671]
[1721231511255,0.60320135,3441.4,3440.8,2.90629]
[1721231511459,0.90480202,3441.6,3440.8,2.90629]
[1721231511460,0.60320135,3441.5,3440.8,2.90629]
[1721231511756,0.90480202,3441.6,3440.8,2.90629]
[1721231511757,0.60320135,3441.6,3440.8,2.90629]
[1721231512178,0.60320135,3441.6,3439.9,2.3818]
[1721231512503,0.60320135,3441.4,3440.7,2.90632]
[1721231512654,0.60320135,3441.5,3440.9,2.90613]
[1721231512852,0.60320135,3441.8,3441.2,2.90594]
[1721231513106,0.60320135,3442.0,3441.3,2.90587]
[1721231513394,0.60320135,3442.1,3441.4,2.90578]
[1721231513553,0.60320135,3442.1,3441.2,2.90592]
[1721231513756,0.60320135,3442.1,3441.2,2.90594]
[1721231514168,0.60320135,3442.1,3441.3,2.3998]
[1721231514373,1.5065674,3442.6,3441.3,2.3998]
[1721231514374,0.60320135,3442.4,3441.3,2.3998]
[1721231514580,0.60320135,3442.6,3442.0,2.90526]
[1721231514884,0.60320135,3442.9,3442.0,2.90526]
[1721231515082,0.60320135,3443.0,3442.0,2.90526]
[1721231515592,0.60320135,3443.0,3441.8,2.90543]
[1721231515896,0.60320135,3443.0,3441.5,2.9057]
[1721231515897,2.9047,3442.7,3441.5,2.9057]
[1721231516203,2.9047,3442.7,3441.3,2.3998]
[1721231516204,3.50790135,3442.7,3441.6,2.90562]
[1721231516401,2.9047,3442.7,3441.6,2.90562]
[1721231516559,2.9047,3442.7,3441.4,2.90579]
[1721231516560,2.90484,3442.6,3441.4,2.90579]
[1721231516757,0.60320135,3442.8,3440.9,2.90616]
[1721231516758,2.90522,3442.1,3440.9,2.90616]